[Event "41st OBSenEM 2025"]
[Site "Berlin"]
[Date "2025.02.13"]
[Round "9.4"]
[White "Postler, Reinhard"]
[Black "Hilbig, Olaf"]
[Result "1/2-1/2"]
[Annotator "TA"]
[WhiteElo "2189"]
[BlackElo "2015"]
[PlyCount "29"]
[EventDate "2025.02.04"]
[EventType "swiss"]
[EventCountry "GER"]
[SourceTitle "playchess.com"]
[Source "ChessBase"]
[SourceQuality "1"]
[TimeControl "40/5400+30:1800+30"]

{[%evp 9,16,11,17,14,33,31,50,45,59]} 1. e4 {[%emt 0:00:06]} c5 {[%emt 0:00:06]} 2. Nf3 {[%emt 0:00:09]} d6 {[%emt 0:00:06]} 3. Bb5+ {[%emt 0:00:26]} Bd7 {[%emt 0:00:14]} 4. Bxd7+ {[%emt 0:00:15]} Qxd7 {[%emt 0:00:07]} 5. O-O {[%emt 0:00:15]} g6 {[%emt 0:00:22]} 6. Re1 {[%emt 0:01:05] B52: Sicilian: Moscow Variation with 3...Bd7.} Nc6 {[%emt 0:01:02]} 7. c3 {[%emt 0:00:23]} Bg7 {[%emt 0:00:15]} 8. d4 {[%emt 0:01:53]} cxd4 {[%emt 0:00:04] Black got outplayed after the opening.   Weighted Error Value: White=0.01 (flawless) /Black=0.15 (very precise)   OK:         	White=1     	---        Best:        	White=1     	---} 9. cxd4 $146 e6 10. Nc3 Nge7 11. Bf4 e5 12. Be3 exd4 13. Nxd4 O-O 14. Nxc6 Nxc6 15. Qd2 {1-0 Bacrot,E (2653)-Royal,S (2456) Titled Tuesday intern op 20th Dec Early blitz 2022 (5)} 1/2-1/2